[Event "Silves Open 2025"]
[Site "Fissul"]
[Date "2025.03.03"]
[Round "4.38"]
[White "Goncalves, Beatriz M A C Nunes"]
[Black "Nguyen, Tri Khoi"]
[Result "0-1"]
[Annotator "NA RC COMBH"]
[ECO "A36"]
[WhiteElo "1458"]
[BlackElo "1630"]
[PlyCount "84"]
[EventDate "2025.03.03"]
[EventType "swiss"]
[EventCountry "POR"]
[SourceTitle "playchess.com"]
[Source "ChessBase"]
[SourceQuality "1"]
[TimeControl "5400+30"]

1. e4 {[%emt 0:00:01]} c5 {[%emt 0:00:07]} 2. c4 {[%emt 0:00:15]} Nc6 {[%emt 0:00:47]} 3. Nc3 {[%emt 0:00:15]} d6 {[%emt 0:00:50]} 4. g3 {[%emt 0:00:43]} g6 {[%emt 0:00:47]} 5. Bg2 {[%emt 0:00:25]} Bg7 {[%emt 0:00:10]} 6. Nge2 {[%emt 0:00:05]} Nf6 {[%emt 0:00:54]} 7. O-O {[%emt 0:01:46]} O-O {[%emt 0:00:15]} 8. d3 {[%emt 0:00:03]} e5 {[%emt 0:00:21]} 9. Be3 {[%emt 0:00:46]} Be6 {[%emt 0:01:18]} 10. h3 {[%emt 1:31:11]} Nd4 {[%emt 0:01:12]} 11. Qd2 {[%emt 0:00:30]} Qd7 {[%emt 0:03:21]} 12. Kh2 {[%emt 0:00:00]} Rab8 13. Bh6 {[%emt 0:01:00]} a6 {[%emt 0:08:11]} 14. Bxg7 {[%emt 0:00:00]} Kxg7 {[%emt 0:00:09]} 15. Nxd4 cxd4 16. Nd5 {[%emt 0:00:00]} Bxd5 {[%emt 0:01:55]} 17. cxd5 {[%emt 0:00:00]} Rfc8 {[%emt 0:01:47]} 18. f4 {[%emt 0:00:00]} Rc5 {[%emt 0:01:03]} 19. Rac1 {[%emt 0:00:00]} Rbc8 {[%emt 0:00:15]} 20. fxe5 {[%emt 0:00:00]} dxe5 {[%emt 0:00:38]} 21. Rxc5 {[%emt 0:00:00]} Rxc5 {[%emt 0:00:21]} 22. Rc1 {[%emt 0:00:00]} Qc7 {[%emt 0:02:24]} 23. Rxc5 {[%emt 0:00:00]} Qxc5 {[%emt 0:00:09]} 24. Bf3 {[%emt 0:00:00]} b5 {[%emt 0:03:06]} 25. Bd1 {[%emt 0:00:00]} Ne8 {[%emt 0:00:53]} 26. Qc2 {[%emt 0:00:00]} Qxc2+ {[%emt 0:00:36]} 27. Bxc2 {[%emt 0:00:00]} Nd6 {[%emt 0:00:08]} 28. b4 {[%emt 0:00:00]} Kf6 {[%emt 0:03:12]} 29. Kg2 {[%emt 0:00:00]} Ke7 {[%emt 0:00:28]} 30. Kf3 {[%emt 0:00:00]} f5 {[%emt 0:00:22]} 31. g4 {[%emt 0:00:00]} fxg4+ {[%emt 0:04:02]} 32. Kxg4 {[%emt 0:00:00]} Kf6 {[%emt 0:00:12]} 33. h4 {[%emt 0:00:00]} h5+ {[%emt 0:04:36]} 34. Kg3 {[%emt 0:00:00]} g5 {[%emt 0:00:28]} 35. hxg5+ {[%emt 0:00:00]} Kxg5 {[%emt 0:00:08]} 36. a4 {[%emt 0:00:00]} h4+ {[%emt 0:00:33]} 37. Kh3 {[%emt 0:00:00]} Kf4 {[%emt 0:02:36]} 38. Kxh4 {[%emt 0:00:00]} Ke3 {[%emt 0:00:13]} 39. axb5 {[%emt 0:00:00]} axb5 {[%emt 0:00:41]} 40. Kg5 {[%emt 0:13:30]} Kd2 {[%emt 1:01:22]} 41. Bb1 {[%emt 0:00:30]} Kc1 42. Ba2 {[%emt 0:00:30]} Kb2 {[%emt 0:01:00]} 0-1

[Event "Silves Open 2025"]
[Site "Fissul"]
[Date "2025.03.04"]
[Round "5.2"]
[White "Degardin, Sylvain"]
[Black "Lux, Hugo de Melo"]
[Result "1/2-1/2"]
[Annotator "TA"]
[ECO "B61"]
[WhiteElo "2309"]
[BlackElo "2329"]
[PlyCount "36"]
[EventDate "2025.03.03"]
[EventType "swiss"]
[EventCountry "POR"]
[SourceTitle "playchess.com"]
[Source "ChessBase"]
[SourceQuality "1"]
[TimeControl "5400+30"]

{[%evp 14,36,52,36,33,32,34,30,55,26,53,59,51,54,70,39,35,33,36,37,38,42,35,35,39]} 1. e4 {[%emt 0:05:19]} c5 {[%emt 0:00:10]} 2. Nf3 {[%emt 0:00:17]} Nc6 {[%emt 0:00:06]} 3. d4 {[%emt 0:00:28]} cxd4 {[%emt 0:00:04]} 4. Nxd4 {[%emt 0:00:08]} Nf6 {[%emt 0:00:06]} 5. Nc3 {[%emt 0:00:11]} d6 {[%emt 0:00:07]} 6. Bg5 {[%emt 0:00:37]} Bd7 {[%emt 0:00:08]} 7. Qd2 {[%emt 0:03:20]} Rc8 {[%emt 0:00:16]} 8. f3 {[%emt 0:00:48]} a6 {[%emt 0:02:57] B61: Sicilian: Richter-Rauzer: 6...Bd7 7 Qd2.} 9. h4 {[%emt 0:03:26]} Nxd4 {[%emt 0:21:58]} 10. Qxd4 {[%emt 0:00:23]} Qa5 {[%emt 0:00:07] White has an edge.} 11. Bc4 {[%emt 0:07:28]} Qc5 {[%emt 0:20:09]} 12. Qxc5 {[%emt 0:01:56] White is slightly better.} Rxc5 {[%emt 0:00:01]} 13. Bb3 {[%emt 0:00:38]} h5 $146 {[%emt 0:00:45]} ({Predecessor:} 13... h6 14. Be3 Rc8 15. O-O-O e6 16. Rd2 Bc6 17. Bf4 e5 18. Be3 Be7 19. g4 Nd7 {½-½ Berg,E (2579)-Lissang,C (2313) Vasteras op 2016 (7)}) 14. O-O-O {[%emt 0:03:17]} Be6 {[%emt 0:10:00]} 15. Rhe1 {[%emt 0:29:07]} Bxb3 {[%emt 0:03:22]} 16. axb3 {[%emt 0:00:31]} Nd7 {[%emt 0:00:08]} 17. Nd5 {[%emt 0:04:42]} g6 {[%emt 0:00:43]} 18. c3 {[%emt 0:07:32]} f6 {[%emt 0:01:19] Weighted Error Value: White=0.08 (flawless) /Black=0.08 (flawless)   Inaccurate:     	White=2     	Black=1      OK:         	White=4     	Black=3} 1/2-1/2

[Event "Silves Open 2025"]
[Site "Fissul"]
[Date "2025.03.04"]
[Round "5.3"]
[White "Fernandes, Antonio"]
[Black "Sanz Wawer, Daniel"]
[Result "1-0"]
[Annotator "ChessBase"]
[ECO "E02"]
[WhiteElo "2326"]
[BlackElo "2283"]
[PlyCount "89"]
[EventDate "2025.03.03"]
[EventType "swiss"]
[EventCountry "POR"]
[SourceTitle "playchess.com"]
[Source "ChessBase"]
[SourceQuality "1"]
[TimeControl "5400+30"]

1. d4 {[%emt 0:11:50]} Nf6 {[%emt 0:00:05]} 2. c4 {[%emt 0:00:06]} e6 {[%emt 0:00:05]} 3. g3 {[%emt 0:00:07]} d5 {[%emt 0:00:07]} 4. Bg2 {[%emt 0:00:39]} Be7 {[%emt 0:00:05]} 5. Nf3 {[%emt 0:00:10]} O-O {[%emt 0:00:07]} 6. O-O {[%emt 0:00:17]} dxc4 {[%emt 0:00:30]} 7. Qa4 {[%emt 0:03:21]} Bd7 {[%emt 0:06:33]} 8. Qxc4 {[%emt 0:00:46]} Bc6 {[%emt 0:00:28]} 9. Nc3 {[%emt 0:01:38]} a6 {[%emt 0:04:49]} 10. Qd3 {[%emt 0:03:19]} b5 {[%emt 0:09:25]} 11. a3 {[%emt 0:05:18]} Nbd7 {[%emt 0:06:03]} 12. Rd1 {[%emt 0:31:32]} Bb7 {[%emt 0:05:38]} 13. b4 {[%emt 0:26:17]} Ra7 {[%emt 0:04:47]} 14. e4 {[%emt 0:09:26]} Qa8 {[%emt 0:00:30]} 15. Nd2 {[%emt 0:00:47]} Rd8 {[%emt 0:01:22]} 16. Qc2 {[%emt 0:02:26]} e5 {[%emt 0:06:52]} 17. Nb3 {[%emt 0:00:23]} exd4 {[%emt 0:07:38]} 18. Nxd4 {[%emt 0:00:12]} Bf8 {[%emt 0:00:06]} 19. Nf5 {[%emt 0:00:47]} Re8 {[%emt 0:08:58]} 20. Be3 {[%emt 0:00:33]} Nb6 {[%emt 0:00:06]} 21. Nd5 {[%emt 0:00:21]} Nfxd5 {[%emt 0:14:52]} 22. exd5 {[%emt 0:00:01]} Qd8 {[%emt 0:00:21]} 23. Rac1 {[%emt 0:00:18]} Ba8 {[%emt 0:01:28]} 24. d6 {[%emt 0:00:54]} cxd6 {[%emt 0:03:21]} 25. Bxa8 {[%emt 0:00:59]} Rxa8 {[%emt 0:00:35]} 26. Bxb6 {[%emt 0:00:30]} Qxb6 {[%emt 0:00:08]} 27. Qc6 {[%emt 0:00:28]} Qd8 {[%emt 0:06:16]} 28. Qd5 {[%emt 0:00:34]} g6 {[%emt 0:13:15]} 29. Ne3 {[%emt 0:00:25]} Qf6 {[%emt 0:00:00]} 30. Rc7 {[%emt 0:00:34]} h5 {[%emt 0:00:00]} 31. Qd3 {[%emt 0:00:29]} Qf3 {[%emt 0:00:00]} 32. Qd5 {[%emt 0:00:27]} Qf6 {[%emt 0:00:00]} 33. Qd3 {[%emt 0:00:32]} Rac8 {[%emt 0:00:00]} 34. Nd5 {[%emt 0:00:10]} Qe5 {[%emt 0:00:09]} 35. Rdc1 {[%emt 0:00:46]} Rxc7 {[%emt 0:01:02]} 36. Rxc7 {[%emt 0:00:03]} Bg7 {[%emt 0:00:27]} 37. Qf3 {[%emt 0:00:21]} f5 {[%emt 0:01:04]} 38. Nf4 {[%emt 0:00:31]} Qf6 {[%emt 0:00:54]} 39. h4 {[%emt 0:00:27]} Re4 {[%emt 0:00:37]} 40. Kh2 {[%emt 0:01:11]} Kh7 {[%emt 0:00:32]} 41. Nh3 {[%emt 0:00:30]} Re8 {[%emt 0:00:55]} 42. Qc6 {[%emt 0:00:31]} Re2 {[%emt 0:00:34]} 43. Qa8 {[%emt 0:00:29]} f4 {[%emt 0:00:38]} 44. Ng5+ {[%emt 0:00:06]} Kh6 {[%emt 0:00:05]} 45. Qh8+ {[%emt 0:00:01]} 1-0

[Event "Silves Open 2025"]
[Site "Fissul"]
[Date "2025.03.04"]
[Round "5.4"]
[White "Sarabando, Rodrigo Andias"]
[Black "Hopman, Pieter"]
[Result "1/2-1/2"]
[Annotator "TA"]
[ECO "E94"]
[WhiteElo "2097"]
[BlackElo "2312"]
[PlyCount "75"]
[EventDate "2025.03.03"]
[EventType "swiss"]
[EventCountry "POR"]
[SourceTitle "playchess.com"]
[Source "ChessBase"]
[SourceQuality "1"]
[TimeControl "5400+30"]

{[%evp 16,75,45,39,82,12,18,11,4,0,0,0,0,-2,0,-13,0,-70,-64,-61,-65,-69,-77,-77,-68,-73,-64,-81,-69,-83,-75,-83,-79,-70,-77,-88,-77,-77,15,-105,0,0,18,24,22,29,18,30,16,0,7,0,0,0,54,0,40,24,27,6,8,0]} 1. d4 {[%emt 0:03:56]} d6 {[%emt 0:00:43]} 2. Nf3 {[%emt 0:01:07]} g6 {[%emt 0:00:08]} 3. c4 {[%emt 0:06:15]} Bg7 {[%emt 0:00:10]} 4. e4 {[%emt 0:03:10]} Nf6 {[%emt 0:00:17]} 5. Nc3 {[%emt 0:00:10]} O-O {[%emt 0:00:06]} 6. Be2 {[%emt 0:00:04]} Nbd7 {[%emt 0:00:55]} 7. O-O {[%emt 0:08:23]} e5 {[%emt 0:00:13]} 8. Be3 {[%emt 0:00:21]} Qe7 $1 {[%emt 0:00:06][%mdl 4] is recently more successful than 8...c6.} 9. d5 {[%emt 0:02:18]} c5 {[%emt 0:02:08] E94: King's Indian: Classical: 6 Be2 e5 7 0-0: Various Black 7th moves.} 10. dxc6 {[%emt 0:06:46] White is more active.} (10. Qd2 $16) 10... bxc6 $11 {[%emt 0:00:05]} 11. b4 {[%emt 0:02:59]} Bb7 {[%emt 0:00:07]} 12. a3 $146 {[%emt 0:13:21]} (12. Qd2 Rfd8 13. Rfd1 Nf8 14. a4 Ne6 15. h3 d5 16. cxd5 cxd5 17. exd5 Nxd5 18. Nxd5 Rxd5 19. Qa2 e4 20. Rxd5 Bxa1 21. Qxa1 Bxd5 22. Qe5 exf3 23. Qxd5 fxe2 {0-1 Al Sayed,M (2508)-Fressinet,L (2672) Wch Rapid Doha 2016 (13)}) 12... Rfd8 {[%emt 0:05:09]} 13. Qb3 {[%emt 0:08:12]} Nf8 {[%emt 0:04:37][%cal Bd7f8,Bf8e6,Be6d4][%mdl 32]} 14. Rad1 {[%emt 0:09:10]} Ne6 {[%emt 0:02:36]} 15. Ne1 {[%emt 0:10:58]} Nd4 {[%emt 0:15:27]} 16. Qb2 {[%emt 0:10:17]} (16. Bxd4 $11 exd4 17. Na4 (17. Rxd4 c5 $11)) 16... d5 $15 {[%emt 0:06:49]} 17. Bg5 {[%emt 0:04:22]} h6 {[%emt 0:17:56]} (17... dxe4 18. Nxe4 h6 19. Bxf6 Bxf6 20. Nxf6+ Qxf6 21. Nf3 $11) 18. Bxf6 {[%emt 0:00:26]} Qxf6 {[%emt 0:01:21]} 19. Nd3 {[%emt 0:01:56]} dxe4 {[%emt 0:04:39][%csl Od4] Strong Square Black (d4)} 20. Nc5 {[%emt 0:00:44]} Qe7 {[%emt 0:01:00]} 21. Nxb7 {[%emt 0:02:12]} Qxb7 {[%emt 0:01:53]} 22. Nxe4 {[%emt 0:00:01]} f5 {[%emt 0:00:33]} 23. Nc5 {[%emt 0:00:10]} Qe7 {[%emt 0:00:51]} 24. Nb3 {[%emt 0:00:11] [#]} c5 {[%emt 0:05:00]} 25. Nxc5 {[%emt 0:01:27]} (25. Nxd4 cxd4) 25... e4 {[%emt 0:00:08][%cal Od4f3]} 26. Qa2 {[%emt 0:00:17]} f4 {[%emt 0:00:11] Black has a king side majority} (26... a5 $17 27. Nb3 Nxe2+ (27... axb4 28. Nxd4 Bxd4 29. c5+ Kg7 30. Qc4 $17) 28. Qxe2 axb4 29. axb4 Qxb4) 27. f3 {[%emt 0:00:59]} (27. Nb3 $11 {keeps the balance.}) 27... exf3 {[%emt 0:03:14]} ({Black should try} 27... a5 $17 {...axb4 would now be deadly.} 28. Nxe4 axb4 29. c5+ Kh7) 28. Bxf3 $11 {[%emt 0:00:02]} Nxf3+ {[%emt 0:00:37]} 29. gxf3 {[%emt 0:00:14] [#] aiming for Ne4.} Bd4+ {[%emt 0:04:06]} 30. Kh1 {[%emt 0:00:36]} Bxc5 {[%emt 0:07:23]} 31. bxc5 {[%emt 0:00:11]} Qxc5 {[%emt 0:00:37]} 32. Qe2 {[%emt 0:00:54]} Re8 {[%emt 0:01:03] Prevents Qe6+} 33. Qd3 {[%emt 0:00:06]} (33. Qb2 {keeps more tension.} Qxc4 34. Rg1 Qf7 35. Rxg6+ Qxg6 36. Rg1) 33... Re6 {[%emt 0:03:04]} 34. Rfe1 {[%emt 0:00:24]} Qc6 {[%emt 0:00:52]} (34... Rae8 $11 35. Rxe6 Rxe6) 35. Kg2 {[%emt 0:05:21]} ({Better is} 35. Rxe6 $14 Qxe6 36. c5) 35... Rf8 {[%emt 0:01:44]} 36. Rxe6 {[%emt 0:00:00]} Qxe6 {[%emt 0:00:05]} 37. Qd5 {[%emt 0:00:00]} Qxd5 {[%emt 0:03:47]} 38. Rxd5 {[%emt 0:00:00] Weighted Error Value: White=0.21 (precise) /Black=0.18 (very precise)   Mistake:       	White=4     	Black=3      Inaccurate:     	---       	Black=1      OK:         	White=7     	Black=11     Best:        	White=2     	Black=1      Brilliant:      	---       	Black=1} 1/2-1/2

[Event "Silves Open 2025"]
[Site "Fissul"]
[Date "2025.03.04"]
[Round "5.5"]
[White "Espinosa Aranda, Angel"]
[Black "Monteiro, Paulo Alexandre G"]
[Result "1-0"]
[Annotator "ChessBase"]
[ECO "B08"]
[WhiteElo "2442"]
[BlackElo "2221"]
[PlyCount "97"]
[EventDate "2025.03.03"]
[EventType "swiss"]
[EventCountry "POR"]
[SourceTitle "playchess.com"]
[Source "ChessBase"]
[SourceQuality "1"]
[TimeControl "5400+30"]

1. Nf3 {[%emt 0:00:07]} c5 {[%emt 0:00:39]} 2. e4 {[%emt 0:01:39]} d6 {[%emt 0:00:21]} 3. Nc3 {[%emt 0:02:28]} Nf6 {[%emt 0:00:46]} 4. d4 {[%emt 0:00:33]} cxd4 {[%emt 0:00:08]} 5. Qxd4 {[%emt 0:00:05]} Nc6 {[%emt 0:01:44]} 6. Qd3 {[%emt 0:00:09]} g6 {[%emt 0:03:41]} 7. Be2 {[%emt 0:00:19]} Bg7 {[%emt 0:00:19]} 8. O-O {[%emt 0:00:19]} O-O {[%emt 0:01:34]} 9. Nd5 {[%emt 0:00:35]} Bg4 {[%emt 0:06:25]} 10. c3 {[%emt 0:02:46]} Bxf3 {[%emt 0:08:52]} 11. Qxf3 {[%emt 0:00:28]} Ne5 {[%emt 0:00:58]} 12. Qe3 {[%emt 0:01:44]} Nxd5 {[%emt 0:09:41]} 13. exd5 {[%emt 0:00:43]} Qc7 {[%emt 0:00:06]} 14. b3 {[%emt 0:23:13]} a6 {[%emt 0:07:30]} 15. a4 {[%emt 0:04:10]} Rfe8 {[%emt 0:09:07]} 16. Bd2 {[%emt 0:06:15]} e6 {[%emt 0:00:26]} 17. dxe6 {[%emt 0:01:46]} Rxe6 {[%emt 0:00:07]} 18. Qh3 {[%emt 0:00:23]} d5 {[%emt 0:04:01]} 19. Rfe1 {[%emt 0:04:57]} Qb6 {[%emt 0:05:04]} 20. Rab1 {[%emt 0:00:24]} Rae8 {[%emt 0:00:50]} 21. Be3 {[%emt 0:05:43]} Qc7 {[%emt 0:01:01]} 22. Rbc1 {[%emt 0:04:15]} Nd7 {[%emt 0:08:10]} 23. Bf3 {[%emt 0:02:14]} Nf6 {[%emt 0:01:43]} 24. Red1 {[%emt 0:03:25]} Ne4 {[%emt 0:03:49]} 25. Bxe4 {[%emt 0:06:02]} dxe4 {[%emt 0:01:15]} 26. Rd5 {[%emt 0:00:09]} f5 {[%emt 0:03:53]} 27. g3 {[%emt 0:01:36]} Be5 {[%emt 0:07:33]} 28. c4 {[%emt 0:06:33]} Rd6 {[%emt 0:03:48]} 29. Qf1 {[%emt 0:01:45]} Rxd5 {[%emt 0:04:11]} 30. cxd5 {[%emt 0:00:04]} Qf7 {[%emt 0:07:48]} 31. Qc4 {[%emt 0:00:47]} Rd8 {[%emt 0:00:00]} 32. Rd1 {[%emt 0:00:07]} Kg7 {[%emt 0:00:00]} 33. Qc5 {[%emt 0:07:31]} Qc7 {[%emt 0:00:00]} 34. b4 {[%emt 0:00:34]} Bd6 {[%emt 0:00:00]} 35. Qd4+ {[%emt 0:00:26]} Kf7 {[%emt 0:00:00]} 36. Bg5 {[%emt 0:00:39]} Re8 {[%emt 0:00:00]} 37. a5 {[%emt 0:01:22]} Qd7 {[%emt 0:00:59]} 38. Rc1 {[%emt 0:00:36]} Kg8 {[%emt 0:01:10]} 39. Bf4 {[%emt 0:02:18]} Bxf4 {[%emt 0:00:15]} 40. gxf4 {[%emt 0:00:03]} Qd6 {[%emt 0:00:52]} 41. Qd2 {[%emt 0:02:05]} Rd8 {[%emt 0:00:42]} 42. Rc5 {[%emt 0:00:08]} Qf6 {[%emt 0:01:04]} 43. Rc7 {[%emt 0:00:40]} h6 {[%emt 0:00:49]} 44. Rxb7 {[%emt 0:00:19]} g5 {[%emt 0:00:26]} 45. Rb6 {[%emt 0:00:13]} Qg7 {[%emt 0:00:23]} 46. fxg5 {[%emt 0:00:44]} hxg5 {[%emt 0:00:26]} 47. d6 {[%emt 0:00:17]} Qa1+ {[%emt 0:00:44]} 48. Kg2 {[%emt 0:00:04]} Qe5 {[%emt 0:00:14]} 49. Qxg5+ {[%emt 0:00:08]} 1-0

[Event "Silves Open 2025"]
[Site "Fissul"]
[Date "2025.03.04"]
[Round "5.6"]
[White "Dias, Ivo Rodrigues"]
[Black "Martins, Bruno Andre Leite"]
[Result "0-1"]
[Annotator "TA"]
[ECO "A45"]
[WhiteElo "2097"]
[BlackElo "2360"]
[PlyCount "60"]
[EventDate "2025.03.03"]
[EventType "swiss"]
[EventCountry "POR"]
[SourceTitle "playchess.com"]
[Source "ChessBase"]
[SourceQuality "1"]
[TimeControl "5400+30"]

{[%evp 9,60,7,7,2,9,11,18,8,9,18,14,18,0,0,-4,-64,-62,-100,-107,-68,-61,-143,-122,-193,-137,-261,-214,-222,-207,-187,-60,-55,-75,-73,-55,-63,-59,-176,-32,-28,0,-178,-155,-429,-431,-1281,-1237,-29996,-29997,-29997,-29998,-29998,-29999]} 1. d4 {[%emt 0:05:07]} Nf6 {[%emt 0:01:21]} 2. Bf4 {[%emt 0:00:08]} g6 {[%emt 0:01:33]} 3. Nc3 {[%emt 0:00:13]} d5 {[%emt 0:00:08]} 4. e3 {[%emt 0:00:21]} Bg7 {[%emt 0:00:08]} 5. h4 {[%emt 0:00:50]} h5 {[%emt 0:00:53]} 6. Nf3 {[%emt 0:02:24] A45: Trompowsky Attack.} O-O {[%emt 0:00:19][%cal Oc7c5]} 7. Qd2 {[%emt 0:01:59]} Bf5 {[%emt 0:06:46]} 8. Ne5 {[%emt 0:03:13] The position is equal.} c5 {[%emt 0:07:39]} 9. f3 {[%emt 0:08:42]} cxd4 {[%emt 0:01:49]} 10. exd4 {[%emt 0:01:36]} Nc6 {[%emt 0:00:06]} 11. Nxc6 {[%emt 0:19:35]} bxc6 {[%emt 0:00:28]} 12. Na4 {[%emt 0:00:02]} (12. O-O-O $11) 12... Nd7 $15 {[%emt 0:05:05]} 13. Ba6 $146 {[%emt 0:02:00]} (13. Be2 e5 14. dxe5 Nxe5 15. Nc5 Qb6 16. Nb3 Nc4 17. Bxc4 dxc4 18. Be3 Rfe8 19. Kf2 {0-1 Lizak,P (2400)-Paravyan,D (2589) Titled Tuesday intern op 18th Oct Late blitz 2022 (6)}) 13... e5 {[%emt 0:03:22]} 14. dxe5 {[%emt 0:00:27]} Nxe5 {[%emt 0:00:40][%cal Of5c2]} 15. O-O-O {[%emt 0:04:47]} (15. Kf2 $15) 15... Re8 $17 {[%emt 0:24:49]} 16. Be3 {[%emt 0:22:23] [#]} (16. Rhe1 $17) 16... d4 {[%emt 0:15:10]} (16... Rb8 $1 $19 {[%cal Oc6c5][%mdl 512]} 17. Rhe1 Qxh4) 17. Bf2 {[%emt 0:13:43]} (17. Bxd4 $17 Nd3+ 18. Bxd3 Qxd4 19. Qa5) 17... Qd5 {[%emt 0:04:36]} 18. Kb1 {[%emt 0:03:49] [#]} d3 {[%emt 0:05:00][%mdl 512]} 19. cxd3 {[%emt 0:03:29]} Nc4 {[%emt 0:06:13]} (19... Red8 $19 {[%cal Oa8b8] and ...Rab8! should not be overlooked} 20. Nc5 Rdb8) 20. Bxc4 $15 {[%emt 0:01:08]} Qxc4 {[%emt 0:00:06] Black attacks} 21. Qc2 {[%emt 0:02:33]} Qb5 {[%emt 0:07:20][%mdl 1024] Black has strong compensation. Black has more active pieces.} 22. Nc3 {[%emt 0:01:06]} Qa6 {[%emt 0:01:30]} 23. Ne4 {[%emt 0:00:19] [#]} ({White should play} 23. Bg3 $15) 23... Rab8 {[%emt 0:00:38]} ({Black should try} 23... Be6 $1 $19 24. a4 Rab8) 24. b3 $1 {[%emt 0:00:14]} c5 $36 {[%emt 0:03:39][%mdl 2048] Black has some pressure.} 25. Rhe1 $2 {[%emt 0:01:53]} (25. Bxc5 $11 {and White is okay.} Rbc8 26. d4 (26. Nd6 $2 Rxc5 27. Nc4 Rb8 $19)) 25... Rec8 $19 {[%emt 0:00:54]} 26. Qc4 $2 {[%emt 0:00:27] Now White is beyond hope.} (26. Bg3 $17 {might work better.} Rb6 27. Re2) 26... Qa3 {[%emt 0:00:20]} 27. Re2 {[%emt 0:00:53] Wards off Qb2+} (27. Rd2 $142 Be6 (27... Qa5 28. Kc1 $17) 28. Qc1) 27... Be6 {[%emt 0:00:17] A strong pair of Bishops.} 28. Qc1 {[%emt 0:00:38] [#]} Rxb3+ $1 {[%emt 0:00:34][%mdl 512] Black mates.} 29. axb3 {[%emt 0:00:10]} Qa1+ {[%emt 0:00:09]} 30. Kc2 {[%emt 0:00:11]} Qa2+ {[%emt 0:00:05] Weighted Error Value: White=0.72/Black=0.19 (very precise)   Loses game:     	White=2     	---        Mistake:       	White=6     	Black=3      Inaccurate:     	White=2     	Black=1      OK:         	White=5     	Black=6      Best:        	White=1     	Black=3      Strong:       	White=1     	---} 0-1

[Event "Silves Open 2025"]
[Site "Fissul"]
[Date "2025.03.04"]
[Round "5.8"]
[White "Van Ree, Thailo"]
[Black "Serarols Mabras, Bernat"]
[Result "0-1"]
[Annotator "ChessBase"]
[ECO "E36"]
[WhiteElo "1881"]
[BlackElo "2311"]
[PlyCount "50"]
[EventDate "2025.03.03"]
[EventType "swiss"]
[EventCountry "POR"]
[SourceTitle "playchess.com"]
[Source "ChessBase"]
[SourceQuality "1"]
[TimeControl "5400+30"]

1. d4 {[%emt 0:00:30]} Nf6 {[%emt 0:05:16]} 2. c4 {[%emt 0:00:14]} e6 {[%emt 0:00:02]} 3. Nc3 {[%emt 0:00:10]} Bb4 {[%emt 0:00:02]} 4. Qc2 {[%emt 0:00:15]} d5 {[%emt 0:00:02]} 5. a3 {[%emt 0:00:22]} Bxc3+ {[%emt 0:02:22]} 6. Qxc3 {[%emt 0:01:25]} dxc4 {[%emt 0:06:03]} 7. Qxc4 {[%emt 0:00:16]} O-O {[%emt 0:00:20]} 8. Nf3 {[%emt 0:00:23]} b6 {[%emt 0:00:28]} 9. Bg5 {[%emt 0:01:40]} Ba6 {[%emt 0:02:39]} 10. Qc2 {[%emt 0:00:51]} Nbd7 {[%emt 0:01:12]} 11. Rd1 {[%emt 0:01:24]} h6 {[%emt 0:00:42]} 12. Bh4 {[%emt 0:06:08]} Qc8 {[%emt 0:07:47]} 13. g4 {[%emt 0:07:03]} Nxg4 {[%emt 0:19:01]} 14. Rg1 {[%emt 0:00:31]} f5 {[%emt 0:09:35]} 15. h3 {[%emt 0:09:47]} Ngf6 {[%emt 0:01:15]} 16. Qc1 {[%emt 0:15:03]} Kh8 {[%emt 0:04:24]} 17. Bg3 {[%emt 0:10:19]} c5 {[%emt 0:06:57]} 18. Bd6 {[%emt 0:07:33]} Rf7 {[%emt 0:00:27]} 19. Ne5 {[%emt 0:00:55]} Nxe5 {[%emt 0:02:22]} 20. Bxe5 {[%emt 0:02:18]} cxd4 {[%emt 0:02:51]} 21. Qf4 {[%emt 0:00:45]} d3 {[%emt 0:02:58]} 22. exd3 {[%emt 0:01:52]} Qd7 {[%emt 0:03:36]} 23. Be2 {[%emt 0:02:03]} Kh7 {[%emt 0:03:18]} 24. Bh5 {[%emt 0:07:31]} Nxh5 {[%emt 0:01:11]} 25. Qf3 {[%emt 0:00:04]} Qd5 {[%emt 0:01:25]} 0-1

[Event "Silves Open 2025"]
[Site "Fissul"]
[Date "2025.03.04"]
[Round "5.9"]
[White "Prata, Jose"]
[Black "Goncalves, Samuel Jesus P"]
[Result "0-1"]
[Annotator "NA RC"]
[ECO "C28"]
[WhiteElo "1839"]
[BlackElo "2280"]
[PlyCount "58"]
[EventDate "2025.03.03"]
[EventType "swiss"]
[EventCountry "POR"]
[SourceTitle "playchess.com"]
[Source "ChessBase"]
[SourceQuality "1"]
[TimeControl "5400+30"]

1. e4 {[%emt 0:00:30]} e5 {[%emt 0:03:27]} 2. Nc3 {[%emt 0:00:00]} Nf6 {[%emt 0:00:13]} 3. Bc4 {[%emt 0:00:00]} Nc6 {[%emt 0:00:06]} 4. d3 {[%emt 0:00:00]} Bc5 {[%emt 0:00:07]} 5. f4 {[%emt 0:00:11]} O-O {[%emt 0:00:10]} 6. Nf3 {[%emt 0:00:17]} exf4 {[%emt 0:00:06]} 7. Bxf4 {[%emt 0:00:58]} d6 {[%emt 0:00:07]} 8. Na4 {[%emt 0:02:36]} d5 {[%emt 0:00:12]} 9. Nxc5 {[%emt 0:08:30]} dxc4 {[%emt 0:00:06]} 10. Na4 {[%emt 0:01:41]} cxd3 {[%emt 0:42:16]} 11. cxd3 {[%emt 0:03:32]} Bg4 {[%emt 0:07:42]} 12. h3 {[%emt 0:12:38]} Nb4 {[%emt 0:00:11]} 13. Ke2 {[%emt 0:04:01]} Nh5 {[%emt 0:07:10]} 14. Bh2 {[%emt 0:00:55]} Bxf3+ {[%emt 0:00:06]} 15. gxf3 {[%emt 0:00:13]} Qd4 {[%emt 0:00:07]} 16. a3 {[%emt 0:27:38]} Nxd3 {[%emt 0:01:11]} 17. Qxd3 {[%emt 0:02:49]} Qxa4 {[%emt 0:00:07]} 18. Rad1 {[%emt 0:02:40]} f5 {[%emt 0:01:55]} 19. Qd5+ {[%emt 0:08:34]} Kh8 {[%emt 0:00:18]} 20. Rd4 {[%emt 0:00:58]} Qa6+ {[%emt 0:01:30]} 21. Qc4 {[%emt 0:02:49]} fxe4 {[%emt 0:00:54]} 22. Qxa6 {[%emt 0:03:10]} exf3+ {[%emt 0:00:06]} 23. Kf2 {[%emt 0:00:20]} bxa6 {[%emt 0:00:04]} 24. Bxc7 {[%emt 0:00:39]} Rac8 {[%emt 0:05:40]} 25. Rc1 {[%emt 0:00:31]} h6 {[%emt 0:00:37]} 26. Rd3 {[%emt 0:03:21]} Rf7 {[%emt 0:02:34]} 27. Rdc3 {[%emt 0:03:58]} Nf6 {[%emt 0:00:24]} 28. Rc4 {[%emt 0:01:32]} Kh7 {[%emt 0:02:23]} 29. Be5 {[%emt 0:01:02]} Ne4+ {[%emt 0:00:39]} 0-1